[Event "*** Titled Tuesday Blitz"]
[Site "Chess.com"]
[Date "2021.02.09"]
[Round "1"]
[White "Sokoloco"]
[Black "Synctel"]
[Result "1-0"]
[WhiteElo "2479"]
[BlackElo "2002"]
[TimeControl "180+1"]
[EndTime "10:06:34 PST"]
[Termination "Sokoloco won by resignation"]

1. b3 {[%clk 0:02:59.7]} 1... e5 {[%clk 0:00:19.7]} 2. Bb2 {[%clk 0:02:54.8]}
2... Nc6 {[%clk 0:00:19.6]} 3. e3 {[%clk 0:02:55.2]} 3... d6 {[%clk 0:00:20.2]}
4. Bb5 {[%clk 0:02:54]} 4... Nf6 {[%clk 0:00:20.9]} 5. Ne2 {[%clk 0:02:51.1]}
5... Bd7 {[%clk 0:00:20.9]} 6. O-O {[%clk 0:02:51.1]} 6... a6 {[%clk 0:00:20.9]}
7. Bxc6 {[%clk 0:02:50.4]} 7... Bxc6 {[%clk 0:00:21.8]} 8. f4 {[%clk 0:02:50]}
8... Be7 {[%clk 0:00:22.4]} 9. Nbc3 {[%clk 0:02:42.2]} 9... exf4 {[%clk
0:00:22.3]} 10. Nxf4 {[%clk 0:02:42.2]} 10... O-O {[%clk 0:00:23]} 11. Nce2
{[%clk 0:02:39.7]} 11... Ne4 {[%clk 0:00:22.7]} 12. Nd4 {[%clk 0:02:37]} 12...
Bf6 {[%clk 0:00:23]} 13. Nxc6 {[%clk 0:02:31.5]} 13... bxc6 {[%clk 0:00:23.9]}
14. Bxf6 {[%clk 0:02:31.3]} 14... Nxf6 {[%clk 0:00:23.9]} 15. Qf3 {[%clk
0:02:30.4]} 15... d5 {[%clk 0:00:24.5]} 16. Nh5 {[%clk 0:02:26]} 16... Nxh5
{[%clk 0:00:23.4]} 17. Qxh5 {[%clk 0:02:26.9]} 17... Qd6 {[%clk 0:00:23.2]} 18.
Rf3 {[%clk 0:02:25.3]} 18... Qg6 {[%clk 0:00:23.3]} 19. Qxg6 {[%clk 0:02:17.6]}
19... hxg6 {[%clk 0:00:23.3]} 20. Kf2 {[%clk 0:02:11.3]} 20... a5 {[%clk
0:00:23.8]} 21. a4 {[%clk 0:02:10.7]} 21... Rfe8 {[%clk 0:00:24.3]} 22. d4
{[%clk 0:02:10.3]} 22... Re4 {[%clk 0:00:24.4]} 23. Rd1 {[%clk 0:02:10.8]} 23...
Rae8 {[%clk 0:00:23.7]} 24. Rd3 {[%clk 0:02:11.3]} 24... f6 {[%clk 0:00:24]} 25.
Rc3 {[%clk 0:02:11.9]} 25... R8e6 {[%clk 0:00:23.4]} 26. Rc5 {[%clk 0:02:12.3]}
26... g5 {[%clk 0:00:22.7]} 27. h3 {[%clk 0:02:10.3]} 27... g6 {[%clk 0:00:19]}
28. Rxa5 {[%clk 0:02:07.5]} 28... f5 {[%clk 0:00:19.5]} 29. Ra8+ {[%clk
0:02:04.9]} 29... Kg7 {[%clk 0:00:19.3]} 30. Rc8 {[%clk 0:02:04.9]} 30... Re7
{[%clk 0:00:19.7]} 31. a5 {[%clk 0:02:04.7]} 31... g4 {[%clk 0:00:19.1]} 32.
hxg4 {[%clk 0:02:00.6]} 32... fxg4 {[%clk 0:00:19.5]} 33. Rg3 {[%clk 0:01:35.8]}
33... c5 {[%clk 0:00:17.5]} 34. a6 {[%clk 0:01:24.6]} 34... cxd4 {[%clk
0:00:17.4]} 35. a7 {[%clk 0:01:14.8]} 35... dxe3+ {[%clk 0:00:16.6]} 36. Ke2
{[%clk 0:01:14.1]} 36... Rf7 {[%clk 0:00:13.5]} 37. Rxe3 {[%clk 0:00:52.2]}
37... Rxe3+ {[%clk 0:00:11.3]} 38. Kxe3 {[%clk 0:00:53.1]} 38... c5 {[%clk
0:00:10.8]} 39. a8=Q {[%clk 0:00:52.5]} 1-0

[Event "*** Titled Tuesday Blitz"]
[Site "Chess.com"]
[Date "2021.02.09"]
[Round "1"]
[White "Sashadav97"]
[Black "andrzej"]
[Result "0-1"]
[WhiteElo "2594"]
[BlackElo "2318"]
[TimeControl "180+1"]
[EndTime "10:06:35 PST"]
[Termination "andrzej won by resignation"]

1. d4 {[%clk 0:02:55.1]} 1... Nf6 {[%clk 0:02:59.7]} 2. c4 {[%clk 0:02:53.8]}
2... c5 {[%clk 0:03:00.3]} 3. d5 {[%clk 0:02:53.5]} 3... b5 {[%clk 0:02:59.7]}
4. Qc2 {[%clk 0:02:49.9]} 4... b4 {[%clk 0:02:59.9]} 5. e4 {[%clk 0:02:48.7]}
5... d6 {[%clk 0:03:00.6]} 6. b3 {[%clk 0:02:48.7]} 6... g6 {[%clk 0:03:01.1]}
7. Bb2 {[%clk 0:02:48.5]} 7... Bg7 {[%clk 0:03:01.8]} 8. Bd3 {[%clk 0:02:48.5]}
8... O-O {[%clk 0:03:02.4]} 9. Ne2 {[%clk 0:02:48]} 9... a5 {[%clk 0:03:03]} 10.
a4 {[%clk 0:02:44.7]} 10... e5 {[%clk 0:02:50.4]} 11. O-O {[%clk 0:02:42.9]}
11... Nh5 {[%clk 0:02:47.5]} 12. Nd2 {[%clk 0:02:40.1]} 12... Ra7 {[%clk
0:02:43.9]} 13. f4 {[%clk 0:02:30.6]} 13... exf4 {[%clk 0:02:37.9]} 14. Bxg7
{[%clk 0:02:31.5]} 14... Kxg7 {[%clk 0:02:36.7]} 15. Nxf4 {[%clk 0:02:31.2]}
15... Nxf4 {[%clk 0:02:37]} 16. Rxf4 {[%clk 0:02:32.1]} 16... Nd7 {[%clk
0:02:37.3]} 17. Nf3 {[%clk 0:02:26.6]} 17... Qe7 {[%clk 0:02:18.2]} 18. Rf1
{[%clk 0:02:22.8]} 18... f6 {[%clk 0:02:17.8]} 19. h4 {[%clk 0:02:02]} 19... Ne5
{[%clk 0:02:13]} 20. h5 {[%clk 0:02:01.2]} 20... g5 {[%clk 0:02:09.1]} 21. Nxe5
{[%clk 0:02:01.2]} 21... Qxe5 {[%clk 0:02:03.9]} 22. R4f2 {[%clk 0:01:56]} 22...
h6 {[%clk 0:02:03]} 23. Qd1 {[%clk 0:01:44.5]} 23... Re7 {[%clk 0:02:02]} 24.
Be2 {[%clk 0:01:44]} 24... Qxe4 {[%clk 0:01:57.4]} 25. Bd3 {[%clk 0:01:40.9]}
25... Qg4 {[%clk 0:01:47.1]} 26. Be2 {[%clk 0:01:33.9]} 26... Qh4 {[%clk
0:01:40.8]} 27. Qc2 {[%clk 0:01:25.1]} 27... f5 {[%clk 0:01:33.3]} 28. Bd3
{[%clk 0:01:24.8]} 28... Qd4 {[%clk 0:01:24.3]} 29. Kh1 {[%clk 0:01:16.7]} 29...
f4 {[%clk 0:01:12.6]} 30. Bg6 {[%clk 0:01:14.2]} 30... Re3 {[%clk 0:01:08.3]}
31. Rf3 {[%clk 0:00:42.6]} 31... Bg4 {[%clk 0:01:01.6]} 32. R3f2 {[%clk
0:00:32.5]} 32... f3 {[%clk 0:00:55.7]} 33. g3 {[%clk 0:00:19]} 33... Re2 {[%clk
0:00:55.6]} 34. Rxe2 {[%clk 0:00:06.3]} 34... fxe2 {[%clk 0:00:56.5]} 0-1

[Event "*** Titled Tuesday Blitz"]
[Site "Chess.com"]
[Date "2021.02.09"]
[Round "1"]
[White "szachuspl"]
[Black "tan275"]
[Result "1-0"]
[WhiteElo "2546"]
[BlackElo "2226"]
[TimeControl "180+1"]
[EndTime "10:06:35 PST"]
[Termination "szachuspl won by resignation"]

1. d4 {[%clk 0:02:58.1]} 1... d5 {[%clk 0:02:56.6]} 2. c4 {[%clk 0:02:57.5]}
2... c6 {[%clk 0:02:55.2]} 3. Nf3 {[%clk 0:02:56.8]} 3... Nf6 {[%clk 0:02:55]}
4. Nc3 {[%clk 0:02:56.1]} 4... g6 {[%clk 0:02:55.4]} 5. Bf4 {[%clk 0:02:55.2]}
5... Bg7 {[%clk 0:02:53.3]} 6. e3 {[%clk 0:02:55.6]} 6... O-O {[%clk 0:02:52.8]}
7. Qb3 {[%clk 0:02:50.5]} 7... dxc4 {[%clk 0:02:40.4]} 8. Bxc4 {[%clk
0:02:49.7]} 8... b5 {[%clk 0:02:39.6]} 9. Be2 {[%clk 0:02:49.4]} 9... Nbd7
{[%clk 0:02:35.4]} 10. O-O {[%clk 0:02:46.9]} 10... a5 {[%clk 0:02:33.6]} 11. a4
{[%clk 0:02:33.4]} 11... b4 {[%clk 0:02:31.9]} 12. Nb1 {[%clk 0:02:32.9]} 12...
c5 {[%clk 0:02:29.8]} 13. Nbd2 {[%clk 0:02:27.4]} 13... Bb7 {[%clk 0:02:27.6]}
14. Rfd1 {[%clk 0:02:26.2]} 14... Bd5 {[%clk 0:02:21.7]} 15. Bc4 {[%clk
0:02:24.2]} 15... Bxc4 {[%clk 0:02:04]} 16. Nxc4 {[%clk 0:02:23.8]} 16... cxd4
{[%clk 0:02:00.8]} 17. Rxd4 {[%clk 0:02:13.6]} 17... Nh5 {[%clk 0:01:50]} 18.
Be5 {[%clk 0:02:09.7]} 18... f6 {[%clk 0:01:45.3]} 19. Bg3 {[%clk 0:02:06]}
19... Nxg3 {[%clk 0:01:43.1]} 20. hxg3 {[%clk 0:02:06]} 20... Nc5 {[%clk
0:01:29]} 21. Qd1 {[%clk 0:01:54.8]} 21... Qc7 {[%clk 0:01:26]} 22. Rc1 {[%clk
0:01:47.6]} 22... Qa7 {[%clk 0:01:22.2]} 23. Ncd2 {[%clk 0:01:30.1]} 23... f5
{[%clk 0:01:18.9]} 24. Rdc4 {[%clk 0:01:24.7]} 24... Nd3 {[%clk 0:01:16.9]} 25.
Qb3 {[%clk 0:01:07.9]} 25... Nxc1 {[%clk 0:01:11.5]} 26. Rxc1+ {[%clk
0:01:06.7]} 26... Kh8 {[%clk 0:01:11.7]} 27. Ng5 {[%clk 0:01:06]} 27... e5
{[%clk 0:01:06.3]} 28. Ne6 {[%clk 0:00:49.3]} 28... Rfc8 {[%clk 0:01:03]} 29.
Nc4 {[%clk 0:00:46.3]} 29... Bf6 {[%clk 0:00:56.5]} 30. Rd1 {[%clk 0:00:43.2]}
30... Qa6 {[%clk 0:00:50.5]} 31. Nd6 {[%clk 0:00:42.4]} 31... Rd8 {[%clk
0:00:42.1]} 32. Nf7+ {[%clk 0:00:41.2]} 32... Kg8 {[%clk 0:00:36.8]} 33. Nfxd8
{[%clk 0:00:41.3]} 33... Bxd8 {[%clk 0:00:20.4]} 34. Nc7+ {[%clk 0:00:36.4]} 1-0

[Event "*** Titled Tuesday Blitz"]
[Site "Chess.com"]
[Date "2021.02.09"]
[Round "1"]
[White "FMKonstantin_Twitch"]
[Black "ViktoriyaTarasova"]
[Result "1-0"]
[WhiteElo "2613"]
[BlackElo "2308"]
[TimeControl "180+1"]
[EndTime "10:06:36 PST"]
[Termination "FMKonstantin_Twitch won by resignation"]

1. e4 {[%clk 0:02:58.6]} 1... c5 {[%clk 0:02:59]} 2. Nf3 {[%clk 0:02:55.5]} 2...
Nc6 {[%clk 0:02:58.9]} 3. d4 {[%clk 0:02:51.3]} 3... cxd4 {[%clk 0:02:58.4]} 4.
Nxd4 {[%clk 0:02:52.2]} 4... Nf6 {[%clk 0:02:52.8]} 5. Nc3 {[%clk 0:02:50.8]}
5... e5 {[%clk 0:02:41.8]} 6. Ndb5 {[%clk 0:02:49.9]} 6... d6 {[%clk 0:02:41.6]}
7. Bg5 {[%clk 0:02:49.5]} 7... a6 {[%clk 0:02:41.3]} 8. Na3 {[%clk 0:02:49.3]}
8... b5 {[%clk 0:02:40.3]} 9. Bxf6 {[%clk 0:02:49.7]} 9... gxf6 {[%clk
0:02:38.3]} 10. Nd5 {[%clk 0:02:50.6]} 10... f5 {[%clk 0:02:37.2]} 11. exf5
{[%clk 0:02:39.2]} 11... Bxf5 {[%clk 0:02:35.8]} 12. Bd3 {[%clk 0:02:39.7]}
12... Be6 {[%clk 0:02:28.8]} 13. Be4 {[%clk 0:02:21.1]} 13... Rc8 {[%clk
0:02:25.2]} 14. c3 {[%clk 0:02:12.8]} 14... h5 {[%clk 0:01:46.8]} 15. Nc2 {[%clk
0:02:04.1]} 15... f5 {[%clk 0:01:44.6]} 16. Bf3 {[%clk 0:02:03.6]} 16... e4
{[%clk 0:01:44]} 17. Bxh5+ {[%clk 0:02:00.4]} 17... Kd7 {[%clk 0:01:44.1]} 18.
Nf4 {[%clk 0:01:58.7]} 18... Bc4 {[%clk 0:01:33.5]} 19. Ne3 {[%clk 0:01:50.3]}
19... Qg5 {[%clk 0:01:33.1]} 20. g3 {[%clk 0:01:49.2]} 20... Ne5 {[%clk
0:01:25.5]} 21. h4 {[%clk 0:01:44.6]} 21... Qf6 {[%clk 0:01:09.3]} 22. Be2
{[%clk 0:01:40.1]} 22... Bxe2 {[%clk 0:01:05.6]} 23. Qxe2 {[%clk 0:01:41]} 23...
Nf3+ {[%clk 0:01:05.9]} 24. Kf1 {[%clk 0:01:38.1]} 24... Bh6 {[%clk 0:01:02.3]}
25. Ned5 {[%clk 0:01:35.5]} 25... Qd8 {[%clk 0:01:01.7]} 26. a4 {[%clk
0:01:34.6]} 26... Qa5 {[%clk 0:00:58.5]} 27. b4 {[%clk 0:01:32.9]} 27... Qd8
{[%clk 0:00:51.4]} 28. axb5 {[%clk 0:01:32.7]} 28... Bxf4 {[%clk 0:00:45.2]} 29.
Nxf4 {[%clk 0:01:22.8]} 29... Rxc3 {[%clk 0:00:44.3]} 30. bxa6 {[%clk
0:01:11.6]} 30... Qc8 {[%clk 0:00:30.1]} 31. Qb5+ {[%clk 0:01:01.5]} 31... Kd8
{[%clk 0:00:21.2]} 32. Rd1 {[%clk 0:00:53]} 32... Rc1 {[%clk 0:00:19.9]} 33. Kg2
{[%clk 0:00:49.5]} 33... Rxd1 {[%clk 0:00:15.8]} 34. Rxd1 {[%clk 0:00:50.4]}
34... Ke7 {[%clk 0:00:16.2]} 35. Ng6+ {[%clk 0:00:46.9]} 35... Kf6 {[%clk
0:00:16]} 36. Rxd6+ {[%clk 0:00:43.4]} 1-0

[Event "*** Titled Tuesday Blitz"]
[Site "Chess.com"]
[Date "2021.02.09"]
[Round "1"]
[White "Twitch_ElhamBlitz05"]
[Black "InitiatingASC"]
[Result "0-1"]
[WhiteElo "2741"]
[BlackElo "2416"]
[TimeControl "180+1"]
[EndTime "10:06:38 PST"]
[Termination "InitiatingASC won by resignation"]

1. e4 {[%clk 0:03:00.4]} 1... c5 {[%clk 0:03:00]} 2. Nf3 {[%clk 0:02:59.8]} 2...
Nc6 {[%clk 0:03:00.3]} 3. b4 {[%clk 0:02:59.7]} 3... e6 {[%clk 0:02:59.4]} 4. b5
{[%clk 0:02:58.7]} 4... Nd4 {[%clk 0:02:59.5]} 5. Nxd4 {[%clk 0:02:58.9]} 5...
cxd4 {[%clk 0:02:59.7]} 6. Bc4 {[%clk 0:02:59.5]} 6... Bc5 {[%clk 0:02:51.2]} 7.
d3 {[%clk 0:02:59.5]} 7... Ne7 {[%clk 0:02:41.9]} 8. O-O {[%clk 0:02:58.9]} 8...
O-O {[%clk 0:02:41.4]} 9. a4 {[%clk 0:02:58.5]} 9... d5 {[%clk 0:02:38.1]} 10.
exd5 {[%clk 0:02:58.8]} 10... Nxd5 {[%clk 0:02:38]} 11. Qf3 {[%clk 0:02:58.5]}
11... Ne7 {[%clk 0:02:30.4]} 12. Nd2 {[%clk 0:02:54]} 12... e5 {[%clk
0:02:20.4]} 13. Ne4 {[%clk 0:02:49.1]} 13... Bd6 {[%clk 0:01:48.1]} 14. Ng5
{[%clk 0:02:35.8]} 14... Bf5 {[%clk 0:01:42.1]} 15. Nxf7 {[%clk 0:02:18.5]}
15... Rxf7 {[%clk 0:01:40]} 16. Bxf7+ {[%clk 0:02:19.4]} 16... Kxf7 {[%clk
0:01:39.8]} 17. g4 {[%clk 0:02:20.3]} 17... Qd7 {[%clk 0:01:35.7]} 18. Bg5
{[%clk 0:02:04.9]} 18... Rf8 {[%clk 0:01:34.5]} 19. Bxe7 {[%clk 0:01:59.8]}
19... Kxe7 {[%clk 0:01:32.2]} 20. gxf5 {[%clk 0:01:58.9]} 20... Rxf5 {[%clk
0:01:31.8]} 21. Qg4 {[%clk 0:01:43.2]} 21... Kf8 {[%clk 0:01:31.4]} 22. f4
{[%clk 0:01:28.9]} 22... exf4 {[%clk 0:01:27.2]} 23. Rae1 {[%clk 0:01:15.9]}
23... h6 {[%clk 0:01:23]} 24. Re4 {[%clk 0:01:13.5]} 24... Rg5 {[%clk
0:01:18.3]} 25. Qxg5 {[%clk 0:00:45]} 25... hxg5 {[%clk 0:01:19.2]} 26. Kh1
{[%clk 0:00:42.7]} 26... Be7 {[%clk 0:01:16.5]} 27. Rfe1 {[%clk 0:00:35.8]}
27... Bf6 {[%clk 0:01:12.4]} 28. Kg2 {[%clk 0:00:35.8]} 28... Qg4+ {[%clk
0:01:12.2]} 29. Kh1 {[%clk 0:00:35.8]} 29... Qf3+ {[%clk 0:01:10.6]} 30. Kg1
{[%clk 0:00:35.7]} 30... Kf7 {[%clk 0:01:05.6]} 31. Rf1 {[%clk 0:00:32.3]} 31...
Qg4+ {[%clk 0:01:04.7]} 32. Kh1 {[%clk 0:00:32.8]} 32... Qh3 {[%clk 0:01:02.4]}
33. Rf2 {[%clk 0:00:32.1]} 33... Kg6 {[%clk 0:01:02.9]} 34. a5 {[%clk
0:00:30.4]} 34... Qf5 {[%clk 0:01:01]} 35. b6 {[%clk 0:00:28.8]} 35... axb6
{[%clk 0:01:01.2]} 36. axb6 {[%clk 0:00:29.7]} 36... Qb5 {[%clk 0:01:01.3]} 37.
h4 {[%clk 0:00:27.4]} 37... Qxb6 {[%clk 0:01:00.4]} 38. hxg5 {[%clk 0:00:27.4]}
38... Bxg5 {[%clk 0:01:00.2]} 39. Rg2 {[%clk 0:00:27.8]} 39... Kf5 {[%clk
0:00:59.8]} 40. Rge2 {[%clk 0:00:27.2]} 40... Bf6 {[%clk 0:00:59.5]} 41. Kg2
{[%clk 0:00:27]} 41... g5 {[%clk 0:00:59.7]} 42. Rf2 {[%clk 0:00:27.4]} 42...
Qc6 {[%clk 0:00:58]} 43. Kh3 {[%clk 0:00:27.4]} 43... Qc8 {[%clk 0:00:57.2]} 44.
Kg2 {[%clk 0:00:27.4]} 44... Qh8 {[%clk 0:00:57.1]} 45. Rf3 {[%clk 0:00:27.4]}
45... Qh4 {[%clk 0:00:55.7]} 46. Re8 {[%clk 0:00:27]} 46... g4 {[%clk
0:00:53.5]} 47. Rf1 {[%clk 0:00:27]} 47... f3+ {[%clk 0:00:53.8]} 48. Kg1 {[%clk
0:00:25.6]} 48... Qg3+ {[%clk 0:00:54]} 49. Kh1 {[%clk 0:00:26.5]} 0-1

[Event "*** Titled Tuesday Blitz"]
[Site "Chess.com"]
[Date "2021.02.09"]
[Round "1"]
[White "LenkaPtacnikova"]
[Black "FloMaster111"]
[Result "0-1"]
[WhiteElo "2168"]
[BlackElo "2508"]
[TimeControl "180+1"]
[EndTime "10:06:38 PST"]
[Termination "FloMaster111 won by resignation"]

1. c4 {[%clk 0:02:52.5]} 1... e6 {[%clk 0:02:58.1]} 2. Nf3 {[%clk 0:02:50.6]}
2... Nf6 {[%clk 0:02:52.2]} 3. e3 {[%clk 0:02:43.1]} 3... b6 {[%clk 0:02:46]} 4.
b3 {[%clk 0:02:42.6]} 4... Bb7 {[%clk 0:02:45.4]} 5. Bb2 {[%clk 0:02:42.6]} 5...
Be7 {[%clk 0:02:44.8]} 6. Be2 {[%clk 0:02:41.5]} 6... d5 {[%clk 0:02:44.7]} 7.
cxd5 {[%clk 0:02:34.6]} 7... exd5 {[%clk 0:02:38.1]} 8. d4 {[%clk 0:02:28.8]}
8... O-O {[%clk 0:02:36]} 9. O-O {[%clk 0:02:28.1]} 9... Ne4 {[%clk 0:02:35.3]}
10. Nc3 {[%clk 0:02:25.8]} 10... Nd7 {[%clk 0:02:16.4]} 11. Rc1 {[%clk 0:02:23]}
11... Nxc3 {[%clk 0:02:10.4]} 12. Rxc3 {[%clk 0:02:19.6]} 12... Nf6 {[%clk
0:02:05.2]} 13. Qc1 {[%clk 0:02:11.5]} 13... Bd6 {[%clk 0:02:04.7]} 14. Ba3
{[%clk 0:02:04.5]} 14... Ne4 {[%clk 0:02:03.1]} 15. Rc2 {[%clk 0:02:04.6]} 15...
c5 {[%clk 0:01:56.3]} 16. Rd1 {[%clk 0:01:57.6]} 16... Qf6 {[%clk 0:01:45.5]}
17. dxc5 {[%clk 0:01:45.7]} 17... bxc5 {[%clk 0:01:46.4]} 18. Bd3 {[%clk
0:01:29.8]} 18... Qh6 {[%clk 0:01:40]} 19. h3 {[%clk 0:01:17.9]} 19... Rad8
{[%clk 0:01:24.9]} 20. Bxe4 {[%clk 0:01:10.8]} 20... dxe4 {[%clk 0:01:24.5]} 21.
Nd2 {[%clk 0:01:07]} 21... Bb8 {[%clk 0:00:37.3]} 22. Bxc5 {[%clk 0:00:55]}
22... Rde8 {[%clk 0:00:36.4]} 23. Nc4 {[%clk 0:00:49.4]} 23... Qh5 {[%clk
0:00:30]} 24. Nd6 {[%clk 0:00:35.5]} 24... Ba6 {[%clk 0:00:26.5]} 25. Nxe8
{[%clk 0:00:25]} 25... Rxe8 {[%clk 0:00:25.2]} 26. Bd6 {[%clk 0:00:20.6]} 26...
Rd8 {[%clk 0:00:25]} 27. Bxb8 {[%clk 0:00:18.6]} 27... Rxd1+ {[%clk 0:00:24.6]}
28. Qxd1 {[%clk 0:00:16.6]} 28... Qxd1+ {[%clk 0:00:25.5]} 29. Kh2 {[%clk
0:00:16.9]} 29... Qxc2 {[%clk 0:00:26]} 30. Be5 {[%clk 0:00:16]} 30... f6 {[%clk
0:00:25.7]} 0-1

[Event "*** Titled Tuesday Blitz"]
[Site "Chess.com"]
[Date "2021.02.09"]
[Round "1"]
[White "Kretov_Evgenij"]
[Black "zimmm36"]
[Result "1-0"]
[WhiteElo "2509"]
[BlackElo "2177"]
[TimeControl "180+1"]
[EndTime "10:06:40 PST"]
[Termination "Kretov_Evgenij won by checkmate"]

1. d4 {[%clk 0:03:00.9]} 1... Nf6 {[%clk 0:02:56]} 2. c4 {[%clk 0:03:01.1]} 2...
e6 {[%clk 0:02:55.5]} 3. Nc3 {[%clk 0:03:01.3]} 3... Bb4 {[%clk 0:02:55.3]} 4.
Bg5 {[%clk 0:03:01.4]} 4... h6 {[%clk 0:02:53.6]} 5. Bh4 {[%clk 0:03:01.5]} 5...
g5 {[%clk 0:02:53.2]} 6. Bg3 {[%clk 0:03:01.7]} 6... Ne4 {[%clk 0:02:52.7]} 7.
Qc2 {[%clk 0:03:02]} 7... Bxc3+ {[%clk 0:02:52.4]} 8. bxc3 {[%clk 0:03:01.7]}
8... f5 {[%clk 0:02:52.1]} 9. Be5 {[%clk 0:03:01.2]} 9... O-O {[%clk 0:02:50.9]}
10. f3 {[%clk 0:03:01.3]} 10... Nf6 {[%clk 0:02:50.7]} 11. h4 {[%clk 0:03:00.2]}
11... g4 {[%clk 0:02:50.5]} 12. e3 {[%clk 0:02:59.3]} 12... d6 {[%clk
0:02:47.5]} 13. Bf4 {[%clk 0:02:59.2]} 13... h5 {[%clk 0:02:43.3]} 14. Bd3
{[%clk 0:02:58.1]} 14... Qe7 {[%clk 0:02:41.3]} 15. Bg5 {[%clk 0:02:54.8]} 15...
Nbd7 {[%clk 0:02:37.8]} 16. Ne2 {[%clk 0:02:53.9]} 16... Qg7 {[%clk 0:02:31.5]}
17. d5 {[%clk 0:02:42]} 17... Ne5 {[%clk 0:02:27.7]} 18. dxe6 {[%clk 0:02:33.8]}
18... Nxd3+ {[%clk 0:02:25.1]} 19. Qxd3 {[%clk 0:02:33.4]} 19... Bxe6 {[%clk
0:02:24.6]} 20. Nd4 {[%clk 0:02:33.5]} 20... Rae8 {[%clk 0:02:20.6]} 21. O-O-O
{[%clk 0:02:25.9]} 21... Nh7 {[%clk 0:02:13.1]} 22. Bf4 {[%clk 0:02:12.9]} 22...
Qf7 {[%clk 0:02:12.2]} 23. Nxe6 {[%clk 0:02:11.6]} 23... Qxe6 {[%clk 0:02:13.1]}
24. Qd5 {[%clk 0:02:10.7]} 24... Qxd5 {[%clk 0:02:08.5]} 25. cxd5 {[%clk
0:02:10.3]} 25... Rf7 {[%clk 0:02:00.2]} 26. Kc2 {[%clk 0:02:09.5]} 26... Nf8
{[%clk 0:02:00.1]} 27. Rb1 {[%clk 0:02:08]} 27... b6 {[%clk 0:01:59.2]} 28. a4
{[%clk 0:02:04.2]} 28... a5 {[%clk 0:01:57.6]} 29. Kb3 {[%clk 0:01:59.4]} 29...
Ng6 {[%clk 0:01:53.1]} 30. Bg5 {[%clk 0:01:58]} 30... Ne5 {[%clk 0:01:51.9]} 31.
Rhf1 {[%clk 0:01:56.4]} 31... Rd7 {[%clk 0:01:36.5]} 32. Rbd1 {[%clk 0:01:55.8]}
32... Rf7 {[%clk 0:01:29.7]} 33. Rd4 {[%clk 0:01:55.5]} 33... Kh7 {[%clk
0:01:27.7]} 34. Kc2 {[%clk 0:01:55.4]} 34... Kg6 {[%clk 0:01:26.7]} 35. Kd2
{[%clk 0:01:55.3]} 35... Nd7 {[%clk 0:01:25.3]} 36. Ke2 {[%clk 0:01:51.7]} 36...
Nc5 {[%clk 0:01:25.1]} 37. Rfd1 {[%clk 0:01:47.1]} 37... Re5 {[%clk 0:01:21.9]}
38. Kf2 {[%clk 0:01:45.2]} 38... Rf8 {[%clk 0:01:13.7]} 39. Bf4 {[%clk
0:01:42.2]} 39... Re7 {[%clk 0:01:12.2]} 40. Re1 {[%clk 0:01:41.4]} 40... Rfe8
{[%clk 0:01:09.5]} 41. Rb1 {[%clk 0:01:39.9]} 41... Rb8 {[%clk 0:00:55.7]} 42.
Kg3 {[%clk 0:01:34.7]} 42... Rbe8 {[%clk 0:00:52.4]} 43. e4 {[%clk 0:01:33.8]}
43... gxf3 {[%clk 0:00:46.6]} 44. exf5+ {[%clk 0:01:33.1]} 44... Kxf5 {[%clk
0:00:47.5]} 45. gxf3 {[%clk 0:01:24.7]} 45... Re2 {[%clk 0:00:47.6]} 46. Bg5
{[%clk 0:01:22.1]} 46... Kg6 {[%clk 0:00:20.8]} 47. Kh3 {[%clk 0:01:16.4]} 47...
Ra2 {[%clk 0:00:19]} 48. Rg1 {[%clk 0:01:15.6]} 48... Rxa4 {[%clk 0:00:16.1]}
49. Bd8+ {[%clk 0:01:10.6]} 49... Kf5 {[%clk 0:00:15.8]} 50. Rg5# {[%clk
0:01:09]} 1-0

[Event "*** Titled Tuesday Blitz"]
[Site "Chess.com"]
[Date "2021.02.09"]
[Round "1"]
[White "KyrgyzFighter"]
[Black "Vincent_Vega95"]
[Result "0-1"]
[WhiteElo "2380"]
[BlackElo "2723"]
[TimeControl "180+1"]
[EndTime "10:06:42 PST"]
[Termination "Vincent_Vega95 won by resignation"]

1. c4 {[%clk 0:03:00.9]} 1... Nf6 {[%clk 0:02:56.8]} 2. Nc3 {[%clk 0:03:01]}
2... g6 {[%clk 0:02:55.2]} 3. e4 {[%clk 0:03:01.2]} 3... d6 {[%clk 0:02:54.9]}
4. d4 {[%clk 0:03:01.4]} 4... Bg7 {[%clk 0:02:55.5]} 5. f3 {[%clk 0:03:01.9]}
5... O-O {[%clk 0:02:56.2]} 6. Be3 {[%clk 0:03:02.2]} 6... c5 {[%clk 0:02:56.4]}
7. d5 {[%clk 0:03:02.7]} 7... e6 {[%clk 0:02:56.1]} 8. Nge2 {[%clk 0:03:02.8]}
8... exd5 {[%clk 0:02:56]} 9. cxd5 {[%clk 0:03:03.7]} 9... h5 {[%clk 0:02:56]}
10. Nf4 {[%clk 0:03:00.5]} 10... a6 {[%clk 0:02:54.8]} 11. a4 {[%clk 0:03:00.3]}
11... Nbd7 {[%clk 0:02:53.9]} 12. Be2 {[%clk 0:02:59.4]} 12... Ne5 {[%clk
0:02:53.8]} 13. O-O {[%clk 0:02:58.9]} 13... Rb8 {[%clk 0:02:53.1]} 14. Qd2
{[%clk 0:02:58.7]} 14... Bd7 {[%clk 0:02:41.6]} 15. a5 {[%clk 0:02:52.2]} 15...
g5 {[%clk 0:02:08.3]} 16. Nh3 {[%clk 0:02:38.5]} 16... Bxh3 {[%clk 0:02:08.7]}
17. gxh3 {[%clk 0:02:38.2]} 17... Nh7 {[%clk 0:02:09.4]} 18. f4 {[%clk
0:02:33.5]} 18... gxf4 {[%clk 0:02:07.2]} 19. Bxf4 {[%clk 0:02:34.4]} 19... Qh4
{[%clk 0:01:58.7]} 20. Kh1 {[%clk 0:02:22.8]} 20... Kh8 {[%clk 0:01:46.5]} 21.
Rg1 {[%clk 0:02:11.8]} 21... b5 {[%clk 0:01:46.5]} 22. axb6 {[%clk 0:01:54.9]}
22... Rxb6 {[%clk 0:01:46.3]} 23. Raf1 {[%clk 0:01:55.4]} 23... Ng6 {[%clk
0:01:17.8]} 24. Bg5 {[%clk 0:01:47.1]} 24... Nxg5 {[%clk 0:01:12.9]} 25. Rxg5
{[%clk 0:01:45.9]} 25... Bh6 {[%clk 0:01:03.8]} 26. Rfg1 {[%clk 0:01:28.8]}
26... Bxg5 {[%clk 0:00:39.6]} 27. Rxg5 {[%clk 0:01:29.7]} 27... Qf4 {[%clk
0:00:31.7]} 28. Rxh5+ {[%clk 0:01:19.4]} 28... Kg7 {[%clk 0:00:31.6]} 29. Qe1
{[%clk 0:01:09.9]} 29... Qe3 {[%clk 0:00:31]} 30. Qf1 {[%clk 0:01:01.2]} 30...
Rxb2 {[%clk 0:00:29.9]} 31. Qe1 {[%clk 0:00:27]} 31... Rc2 {[%clk 0:00:26.8]}
32. Qd1 {[%clk 0:00:17.2]} 32... Rxc3 {[%clk 0:00:25.1]} 0-1